[Event "Titled Tuesday Blitz May 9 Late 2023"]
[White "Vakhlamov, Igor L."]
[Black "Rodriguez Fontecha, Marcos"]
[WhiteFideId "24126748"]
[BlackFideId "2256576"]
[WhiteElo "2407"]
[BlackElo "2249"]
[Result "0-1"]
[Round "05"]
[TimeControl "180+2"]
[Date "2023.05.09"]
[WhiteClock "0:00:01"]
[BlackClock "0:00:26"]

1. e4 {[%clk 0:03:00]}  e6 {[%clk 0:02:59]} 2. d4 {[%clk 0:03:00]}  c5 {[%clk 0:02:59]} 3. Nc3 {[%clk 0:03:01]}  cxd4 {[%clk 0:02:59]} 4. Qxd4 {[%clk 0:03:01]}  Nc6 {[%clk 0:03:00]} 5. Qd3 {[%clk 0:02:56]}  Nf6 {[%clk 0:03:00]} 6. Nf3 {[%clk 0:02:55]}  Bb4 {[%clk 0:03:00]} 7. Bd2 {[%clk 0:02:39]}  Qb6 {[%clk 0:02:57]} 8. a3 {[%clk 0:02:17]}  Be7 {[%clk 0:02:45]} 9. Qb5 {[%clk 0:02:03]}  d5 {[%clk 0:02:30]} 10. Qxb6 {[%clk 0:02:03]}  axb6 {[%clk 0:02:30]} 11. exd5 {[%clk 0:02:03]}  exd5 {[%clk 0:02:29]} 12. Bd3 {[%clk 0:02:04]}  Bg4 {[%clk 0:02:28]} 13. O-O {[%clk 0:01:58]}  Bxf3 {[%clk 0:02:28]} 14. gxf3 {[%clk 0:01:59]}  Ne5 {[%clk 0:02:24]} 15. Bb5+ {[%clk 0:01:59]}  Kf8 {[%clk 0:02:20]} 16. Kg2 {[%clk 0:01:57]}  Ng6 {[%clk 0:02:12]} 17. Rfe1 {[%clk 0:01:48]}  Nh4+ {[%clk 0:02:12]} 18. Kg3 {[%clk 0:01:48]}  Nf5+ {[%clk 0:02:12]} 19. Kh3 {[%clk 0:01:47]}  Nd4 {[%clk 0:02:09]} 20. Bd3 {[%clk 0:01:30]}  Nxf3 {[%clk 0:02:08]} 21. Re2 {[%clk 0:01:30]}  Nxd2 {[%clk 0:01:59]} 22. Rxd2 {[%clk 0:01:31]}  g6 {[%clk 0:01:59]} 23. Re1 {[%clk 0:01:28]}  Rc8 {[%clk 0:01:51]} 24. Bf1 {[%clk 0:01:20]}  Bxa3 {[%clk 0:01:48]} 25. Nxd5 {[%clk 0:01:12]}  Bxb2 {[%clk 0:01:28]} 26. Rb1 {[%clk 0:00:59]}  Nxd5 {[%clk 0:01:23]} 27. Rxb2 {[%clk 0:00:59]}  Rc3+ {[%clk 0:01:18]} 28. Kg2 {[%clk 0:00:37]}  Rc5 {[%clk 0:01:17]} 29. c4 {[%clk 0:00:34]}  Nf4+ {[%clk 0:01:15]} 30. Kf3 {[%clk 0:00:29]}  Rf5 {[%clk 0:01:15]} 31. Rd8+ {[%clk 0:00:21]}  Kg7 {[%clk 0:01:15]} 32. Rxh8 {[%clk 0:00:22]}  Kxh8 {[%clk 0:01:16]} 33. Ke4 {[%clk 0:00:23]}  Rf6 {[%clk 0:01:15]} 34. Ke5 {[%clk 0:00:22]}  Kg7 {[%clk 0:01:14]} 35. h4 {[%clk 0:00:16]}  h6 {[%clk 0:01:10]} 36. Ke4 {[%clk 0:00:13]}  g5 {[%clk 0:01:10]} 37. hxg5 {[%clk 0:00:14]}  hxg5 {[%clk 0:01:10]} 38. f3 {[%clk 0:00:15]}  Re6+ {[%clk 0:01:09]} 39. Kf5 {[%clk 0:00:14]}  Re1 {[%clk 0:01:09]} 40. Rf2 {[%clk 0:00:09]}  f6 {[%clk 0:01:07]} 41. Bg2 {[%clk 0:00:06]}  Rc1 {[%clk 0:00:57]} 42. Bf1 {[%clk 0:00:04]}  Kf7 {[%clk 0:00:53]} 43. Kg4 {[%clk 0:00:01]}  Kg6 {[%clk 0:00:53]} 44. Kg3 {[%clk 0:00:02]}  f5 {[%clk 0:00:51]} 45. Kh2 {[%clk 0:00:03]}  Kh6 {[%clk 0:00:44]} 46. Kg3 {[%clk 0:00:03]}  Kh5 {[%clk 0:00:45]} 47. Kh2 {[%clk 0:00:03]}  Kh4 {[%clk 0:00:45]} 48. Bg2 {[%clk 0:00:04]}  Rxc4 {[%clk 0:00:43]} 49. Rb2 {[%clk 0:00:04]}  b5 {[%clk 0:00:40]} 50. Rxb5 {[%clk 0:00:03]}  Rc2 {[%clk 0:00:40]} 51. Rxb7 {[%clk 0:00:01]}  Rxg2+ {[%clk 0:00:39]} 52. Kh1 {[%clk 0:00:02]}  Rc2 {[%clk 0:00:36]} 53. Rg7 {[%clk 0:00:01]}  g4 {[%clk 0:00:29]} 54. fxg4 {[%clk 0:00:01]}  fxg4 {[%clk 0:00:30]} 55. Re7 {[%clk 0:00:01]}  Rc1+ {[%clk 0:00:26]} 56. Kh2 {[%clk 0:00:01]}  g3# {[%clk 0:00:26]} 0-1


[Site "https://www.chess.com"]

[Event "Titled Tuesday Blitz May 9 Late 2023"]
[White "Ladan, Nicholas"]
[Black "Prohaszka, Peter"]
[WhiteFideId "30918855"]
[BlackFideId "726265"]
[WhiteElo "2167"]
[BlackElo "2626"]
[Result "0-1"]
[Round "05"]
[TimeControl "180+2"]
[Date "2023.05.09"]
[WhiteClock "0:00:03"]
[BlackClock "0:00:11"]

1. d4 {[%clk 0:03:00]}  d5 {[%clk 0:02:56]} 2. Nf3 {[%clk 0:03:01]}  Nf6 {[%clk 0:02:56]} 3. Bf4 {[%clk 0:03:00]}  c5 {[%clk 0:02:55]} 4. e3 {[%clk 0:03:00]}  cxd4 {[%clk 0:02:56]} 5. exd4 {[%clk 0:02:59]}  Nc6 {[%clk 0:02:57]} 6. Bb5 {[%clk 0:02:55]}  Qa5+ {[%clk 0:02:48]} 7. Nc3 {[%clk 0:02:52]}  Bg4 {[%clk 0:02:48]} 8. O-O {[%clk 0:02:49]}  Rc8 {[%clk 0:02:41]} 9. h3 {[%clk 0:02:31]}  Bxf3 {[%clk 0:02:40]} 10. Qxf3 {[%clk 0:02:32]}  e6 {[%clk 0:02:29]} 11. Be3 {[%clk 0:02:07]}  Bb4 {[%clk 0:02:19]} 12. Bd3 {[%clk 0:01:59]}  Bxc3 {[%clk 0:01:55]} 13. bxc3 {[%clk 0:02:00]}  Qxc3 {[%clk 0:01:55]} 14. Qg3 {[%clk 0:01:41]}  g6 {[%clk 0:01:00]} 15. Qh4 {[%clk 0:01:21]}  Ne4 {[%clk 0:00:46]} 16. Bxe4 {[%clk 0:01:11]}  dxe4 {[%clk 0:00:47]} 17. Qf6 {[%clk 0:01:10]}  Rg8 {[%clk 0:00:42]} 18. Rab1 {[%clk 0:01:08]}  b6 {[%clk 0:00:38]} 19. Rb3 {[%clk 0:00:49]}  Qc4 {[%clk 0:00:37]} 20. d5 {[%clk 0:00:28]}  Qxd5 {[%clk 0:00:29]} 21. Rc3 {[%clk 0:00:26]}  Qf5 {[%clk 0:00:18]} 22. Bg5 {[%clk 0:00:15]}  Qxf6 {[%clk 0:00:16]} 23. Bxf6 {[%clk 0:00:16]}  g5 {[%clk 0:00:06]} 24. Rd1 {[%clk 0:00:15]}  Rg6 {[%clk 0:00:02]} 25. Rxc6 {[%clk 0:00:14]}  Ra8 {[%clk 0:00:02]} 26. Be5 {[%clk 0:00:09]}  Rd8 {[%clk 0:00:02]} 27. Rxd8+ {[%clk 0:00:06]}  Kxd8 {[%clk 0:00:03]} 28. Rd6+ {[%clk 0:00:05]}  Ke7 {[%clk 0:00:02]} 29. Rc6 {[%clk 0:00:05]}  f6 {[%clk 0:00:02]} 30. Bg3 {[%clk 0:00:03]}  e5 {[%clk 0:00:03]} 31. h4 {[%clk 0:00:03]}  h6 {[%clk 0:00:02]} 32. hxg5 {[%clk 0:00:03]}  hxg5 {[%clk 0:00:03]} 33. f3 {[%clk 0:00:04]}  exf3 {[%clk 0:00:02]} 34. gxf3 {[%clk 0:00:05]}  Rg8 {[%clk 0:00:02]} 35. Rc7+ {[%clk 0:00:05]}  Ke6 {[%clk 0:00:02]} 36. Rxa7 {[%clk 0:00:06]}  Rc8 {[%clk 0:00:02]} 37. Ra6 {[%clk 0:00:06]}  Rc6 {[%clk 0:00:03]} 38. c4 {[%clk 0:00:05]}  Kf5 {[%clk 0:00:02]} 39. Kf2 {[%clk 0:00:05]}  Rxc4 {[%clk 0:00:02]} 40. Ke3 {[%clk 0:00:03]}  b5 {[%clk 0:00:02]} 41. Be1 {[%clk 0:00:02]}  Rc2 {[%clk 0:00:02]} 42. Bb4 {[%clk 0:00:02]}  g4 {[%clk 0:00:02]} 43. Be7 {[%clk 0:00:02]}  gxf3 {[%clk 0:00:02]} 44. Rxf6+ {[%clk 0:00:02]}  Kg4 {[%clk 0:00:02]} 45. Rxf3 {[%clk 0:00:03]}  Rc3+ {[%clk 0:00:02]} 46. Ke4 {[%clk 0:00:03]}  Rxf3 {[%clk 0:00:03]} 47. Kxe5 {[%clk 0:00:03]}  Rf2 {[%clk 0:00:03]} 48. a3 {[%clk 0:00:03]}  Rd2 {[%clk 0:00:03]} 49. Bb4 {[%clk 0:00:03]}  Rd1 {[%clk 0:00:03]} 50. Ke4 {[%clk 0:00:03]}  Kg5 {[%clk 0:00:03]} 51. Ke3 {[%clk 0:00:03]}  Kf5 {[%clk 0:00:03]} 52. Bd2 {[%clk 0:00:03]}  Rb1 {[%clk 0:00:03]} 53. Kd3 {[%clk 0:00:03]}  Ke5 {[%clk 0:00:03]} 54. Kc3 {[%clk 0:00:03]}  Kd5 {[%clk 0:00:03]} 55. Bg5 {[%clk 0:00:03]}  Rf1 {[%clk 0:00:03]} 56. Be7 {[%clk 0:00:03]}  Kc6 {[%clk 0:00:03]} 57. Kb4 {[%clk 0:00:04]}  Rf4+ {[%clk 0:00:04]} 58. Kb3 {[%clk 0:00:04]}  Ra4 {[%clk 0:00:05]} 59. Bb4 {[%clk 0:00:04]}  Ra6 {[%clk 0:00:05]} 60. Kc3 {[%clk 0:00:05]}  Ra4 {[%clk 0:00:05]} 61. Kd4 {[%clk 0:00:05]}  Ra8 {[%clk 0:00:05]} 62. Kc3 {[%clk 0:00:06]}  Rg8 {[%clk 0:00:05]} 63. Kb3 {[%clk 0:00:06]}  Rg3+ {[%clk 0:00:06]} 64. Bc3 {[%clk 0:00:06]}  Kc5 {[%clk 0:00:06]} 65. Kb2 {[%clk 0:00:06]}  Kc4 {[%clk 0:00:07]} 66. Bb4 {[%clk 0:00:05]}  Rg2+ {[%clk 0:00:07]} 67. Kc1 {[%clk 0:00:06]}  Kb3 {[%clk 0:00:08]} 68. Kd1 {[%clk 0:00:06]}  Rc2 {[%clk 0:00:08]} 69. Bf8 {[%clk 0:00:04]}  Rc4 {[%clk 0:00:09]} 70. Bb4 {[%clk 0:00:04]}  Rxb4 {[%clk 0:00:08]} 71. axb4 {[%clk 0:00:05]}  Kxb4 {[%clk 0:00:09]} 72. Kc1 {[%clk 0:00:05]}  Ka3 {[%clk 0:00:09]} 73. Kb1 {[%clk 0:00:04]}  Kb3 {[%clk 0:00:10]} 74. Ka1 {[%clk 0:00:04]}  b4 {[%clk 0:00:09]} 75. Kb1 {[%clk 0:00:04]}  Ka3 {[%clk 0:00:10]} 76. Ka1 {[%clk 0:00:05]}  b3 {[%clk 0:00:10]} 77. Kb1 {[%clk 0:00:03]}  b2 {[%clk 0:00:11]} 0-1


[Site "https://www.chess.com"]

[Event "Titled Tuesday Blitz May 9 Late 2023"]
[White "ATM622"]
[Black "Demchenko, Anton"]
[BlackFideId "4160258"]
[WhiteElo "2581"]
[BlackElo "2545"]
[Result "1-0"]
[Round "05"]
[TimeControl "180+2"]
[Date "2023.05.09"]
[WhiteClock "0:00:04"]
[BlackClock "0:00:00"]

1. d4 {[%clk 0:02:58]}  d5 {[%clk 0:02:58]} 2. c4 {[%clk 0:02:58]}  e6 {[%clk 0:02:59]} 3. Nf3 {[%clk 0:02:58]}  h6 {[%clk 0:02:57]} 4. g3 {[%clk 0:02:57]}  Nf6 {[%clk 0:02:56]} 5. Bg2 {[%clk 0:02:57]}  Bd6 {[%clk 0:02:57]} 6. O-O {[%clk 0:02:57]}  O-O {[%clk 0:02:57]} 7. Nbd2 {[%clk 0:02:57]}  b6 {[%clk 0:02:57]} 8. b3 {[%clk 0:02:57]}  Bb7 {[%clk 0:02:57]} 9. Bb2 {[%clk 0:02:57]}  Nbd7 {[%clk 0:02:57]} 10. Qc2 {[%clk 0:02:57]}  Re8 {[%clk 0:02:57]} 11. Ne5 {[%clk 0:02:57]}  c5 {[%clk 0:02:42]} 12. e3 {[%clk 0:02:57]}  Rc8 {[%clk 0:02:39]} 13. Rac1 {[%clk 0:02:55]}  cxd4 {[%clk 0:02:35]} 14. exd4 {[%clk 0:02:55]}  Qc7 {[%clk 0:02:35]} 15. Rfe1 {[%clk 0:02:48]}  dxc4 {[%clk 0:02:35]} 16. Bxb7 {[%clk 0:02:33]}  Qxb7 {[%clk 0:02:34]} 17. Ndxc4 {[%clk 0:02:19]}  Bb4 {[%clk 0:02:32]} 18. Bc3 {[%clk 0:02:00]}  Bf8 {[%clk 0:02:26]} 19. a4 {[%clk 0:01:51]}  Nd5 {[%clk 0:02:24]} 20. Bd2 {[%clk 0:01:20]}  N7f6 {[%clk 0:02:24]} 21. Qd3 {[%clk 0:01:14]}  Rc7 {[%clk 0:02:18]} 22. Qf3 {[%clk 0:01:10]}  Rec8 {[%clk 0:02:19]} 23. h4 {[%clk 0:01:09]}  Nb4 {[%clk 0:01:58]} 24. Qxb7 {[%clk 0:00:50]}  Rxb7 {[%clk 0:01:59]} 25. Bxb4 {[%clk 0:00:38]}  Bxb4 {[%clk 0:02:00]} 26. Red1 {[%clk 0:00:34]}  Rbc7 {[%clk 0:02:00]} 27. f3 {[%clk 0:00:25]}  Nd5 {[%clk 0:01:59]} 28. Kf2 {[%clk 0:00:21]}  Be7 {[%clk 0:01:46]} 29. f4 {[%clk 0:00:07]}  h5 {[%clk 0:01:43]} 30. Kf3 {[%clk 0:00:07]}  f6 {[%clk 0:01:37]} 31. Nd3 {[%clk 0:00:07]}  Kf7 {[%clk 0:01:29]} 32. Ne3 {[%clk 0:00:04]}  Rc3 {[%clk 0:01:23]} 33. Rxc3 {[%clk 0:00:02]}  Rxc3 {[%clk 0:01:22]} 34. Nxd5 {[%clk 0:00:01]}  exd5 {[%clk 0:01:23]} 35. Ke3 {[%clk 0:00:02]}  Ke6 {[%clk 0:00:56]} 36. Rb1 {[%clk 0:00:01]}  Kf5 {[%clk 0:00:49]} 37. Kd2 {[%clk 0:00:02]}  Rc7 {[%clk 0:00:50]} 38. b4 {[%clk 0:00:02]}  Kg4 {[%clk 0:00:47]} 39. Ke3 {[%clk 0:00:02]}  Bd6 {[%clk 0:00:42]} 40. Nf2+ {[%clk 0:00:02]}  Kf5 {[%clk 0:00:35]} 41. Nd3 {[%clk 0:00:02]}  Rc2 {[%clk 0:00:31]} 42. a5 {[%clk 0:00:02]}  Kg4 {[%clk 0:00:25]} 43. Nf2+ {[%clk 0:00:02]}  Kf5 {[%clk 0:00:22]} 44. Nd3 {[%clk 0:00:03]}  Rc7 {[%clk 0:00:18]} 45. axb6 {[%clk 0:00:03]}  axb6 {[%clk 0:00:19]} 46. b5 {[%clk 0:00:03]}  Kg4 {[%clk 0:00:18]} 47. Nf2+ {[%clk 0:00:03]}  Kxg3 {[%clk 0:00:11]} 48. Rg1+ {[%clk 0:00:03]}  Kxh4 {[%clk 0:00:11]} 49. Rh1+ {[%clk 0:00:04]}  Kg3 {[%clk 0:00:10]} 50. Rg1+ {[%clk 0:00:03]}  Kh2 {[%clk 0:00:09]} 51. Rg6 {[%clk 0:00:03]}  Rc3+ {[%clk 0:00:02]} 52. Ke2 {[%clk 0:00:04]}  Bxf4 {[%clk 0:00:02]} 53. Nd3 {[%clk 0:00:04]}  Bg5 {[%clk 0:00:00]} 54. Ne1 {[%clk 0:00:04]} 1-0


[Site "https://www.chess.com"]

[Event "Titled Tuesday Blitz May 9 Late 2023"]
[White "Pakleza, Zbigniew"]
[Black "Vlassov, Nikolai"]
[WhiteFideId "1119290"]
[BlackFideId "4103360"]
[WhiteElo "2410"]
[BlackElo "2324"]
[Result "1-0"]
[Round "05"]
[TimeControl "180+2"]
[Date "2023.05.09"]
[WhiteClock "0:00:04"]
[BlackClock "0:00:08"]

1. d4 {[%clk 0:03:00]}  Nf6 {[%clk 0:02:59]} 2. Nf3 {[%clk 0:03:00]}  e6 {[%clk 0:02:59]} 3. Bf4 {[%clk 0:03:01]}  c5 {[%clk 0:02:59]} 4. c3 {[%clk 0:03:01]}  b6 {[%clk 0:03:00]} 5. e3 {[%clk 0:03:01]}  Bb7 {[%clk 0:03:00]} 6. Nbd2 {[%clk 0:03:01]}  Be7 {[%clk 0:03:01]} 7. h3 {[%clk 0:03:01]}  d6 {[%clk 0:03:01]} 8. Bd3 {[%clk 0:03:01]}  Nbd7 {[%clk 0:03:01]} 9. Qe2 {[%clk 0:03:01]}  h6 {[%clk 0:03:01]} 10. e4 {[%clk 0:02:58]}  Qc7 {[%clk 0:03:00]} 11. Bh2 {[%clk 0:02:55]}  g5 {[%clk 0:02:50]} 12. a4 {[%clk 0:02:26]}  g4 {[%clk 0:02:46]} 13. hxg4 {[%clk 0:02:18]}  Nxg4 {[%clk 0:02:47]} 14. Bg3 {[%clk 0:02:19]}  h5 {[%clk 0:02:44]} 15. a5 {[%clk 0:02:03]}  bxa5 {[%clk 0:02:37]} 16. Nc4 {[%clk 0:01:55]}  cxd4 {[%clk 0:02:37]} 17. Nxd4 {[%clk 0:01:51]}  Nde5 {[%clk 0:02:12]} 18. Nb5 {[%clk 0:01:20]}  Qc5 {[%clk 0:02:04]} 19. Nxe5 {[%clk 0:01:13]}  Nxe5 {[%clk 0:02:01]} 20. Rxa5 {[%clk 0:01:06]}  Qb6 {[%clk 0:01:33]} 21. b4 {[%clk 0:01:06]}  Nxd3+ {[%clk 0:01:26]} 22. Qxd3 {[%clk 0:01:07]}  h4 {[%clk 0:01:26]} 23. Bf4 {[%clk 0:00:58]}  e5 {[%clk 0:01:15]} 24. Be3 {[%clk 0:00:55]}  Qc6 {[%clk 0:01:15]} 25. f3 {[%clk 0:00:49]}  a6 {[%clk 0:01:15]} 26. Na7 {[%clk 0:00:39]}  Qd7 {[%clk 0:01:04]} 27. Kf2 {[%clk 0:00:29]}  h3 {[%clk 0:01:03]} 28. c4 {[%clk 0:00:24]}  f5 {[%clk 0:00:52]} 29. exf5 {[%clk 0:00:22]}  Kf7 {[%clk 0:00:53]} 30. b5 {[%clk 0:00:17]}  hxg2 {[%clk 0:00:50]} 31. Rxh8 {[%clk 0:00:15]}  Rxh8 {[%clk 0:00:50]} 32. Kxg2 {[%clk 0:00:15]}  axb5 {[%clk 0:00:45]} 33. cxb5 {[%clk 0:00:15]}  Kf6 {[%clk 0:00:31]} 34. Nc6 {[%clk 0:00:14]}  Bxc6 {[%clk 0:00:29]} 35. bxc6 {[%clk 0:00:15]}  Qxc6 {[%clk 0:00:29]} 36. Ra7 {[%clk 0:00:09]}  Qe8 {[%clk 0:00:24]} 37. Qe4 {[%clk 0:00:04]}  Qb5 {[%clk 0:00:17]} 38. Qg4 {[%clk 0:00:03]}  Qe2+ {[%clk 0:00:11]} 39. Bf2 {[%clk 0:00:03]}  Rh2+ {[%clk 0:00:11]} 40. Kxh2 {[%clk 0:00:03]}  Qxf2+ {[%clk 0:00:11]} 41. Kh3 {[%clk 0:00:04]}  Qf1+ {[%clk 0:00:07]} 42. Kh2 {[%clk 0:00:04]}  Qf2+ {[%clk 0:00:07]} 43. Kh3 {[%clk 0:00:04]}  Qf1+ {[%clk 0:00:07]} 44. Qg2 {[%clk 0:00:05]}  Qf2 {[%clk 0:00:08]} 45. Qg6# {[%clk 0:00:04]} 1-0


[Site "https://www.chess.com"]

[Event "Titled Tuesday Blitz May 9 Late 2023"]
[White "Papasimakopoulos, Alexandros"]
[Black "Richter, Paul"]
[WhiteFideId "4244125"]
[BlackFideId "2046350"]
[WhiteElo "2359"]
[BlackElo "2556"]
[Result "1-0"]
[Round "05"]
[TimeControl "180+2"]
[Date "2023.05.09"]
[WhiteClock "0:00:13"]
[BlackClock "0:00:04"]

1. d4 {[%clk 0:02:51]}  Nf6 {[%clk 0:02:59]} 2. c4 {[%clk 0:02:30]}  g6 {[%clk 0:02:59]} 3. Nc3 {[%clk 0:02:30]}  Bg7 {[%clk 0:02:59]} 4. Bg5 {[%clk 0:02:30]}  O-O {[%clk 0:02:59]} 5. e3 {[%clk 0:02:30]}  d6 {[%clk 0:02:59]} 6. Be2 {[%clk 0:02:31]}  Nbd7 {[%clk 0:02:56]} 7. Nf3 {[%clk 0:02:31]}  h6 {[%clk 0:02:53]} 8. Bh4 {[%clk 0:02:31]}  c6 {[%clk 0:02:51]} 9. O-O {[%clk 0:02:29]}  Qe8 {[%clk 0:02:51]} 10. Qc2 {[%clk 0:02:26]}  e5 {[%clk 0:02:48]} 11. dxe5 {[%clk 0:02:27]}  dxe5 {[%clk 0:02:49]} 12. Nd2 {[%clk 0:02:28]}  Qe6 {[%clk 0:01:57]} 13. b4 {[%clk 0:02:19]}  a5 {[%clk 0:01:55]} 14. a3 {[%clk 0:02:19]}  c5 {[%clk 0:01:36]} 15. b5 {[%clk 0:02:02]}  b6 {[%clk 0:01:26]} 16. Bf3 {[%clk 0:01:52]}  Rb8 {[%clk 0:01:16]} 17. Rad1 {[%clk 0:01:36]}  g5 {[%clk 0:01:10]} 18. Bg3 {[%clk 0:01:35]}  g4 {[%clk 0:01:09]} 19. Bc6 {[%clk 0:01:27]}  Bb7 {[%clk 0:01:00]} 20. Nd5 {[%clk 0:01:28]}  Nxd5 {[%clk 0:00:48]} 21. cxd5 {[%clk 0:01:21]}  Qe7 {[%clk 0:00:33]} 22. e4 {[%clk 0:01:21]}  Bc8 {[%clk 0:00:22]} 23. Nc4 {[%clk 0:01:20]}  h5 {[%clk 0:00:18]} 24. d6 {[%clk 0:01:09]}  Qg5 {[%clk 0:00:18]} 25. Qd2 {[%clk 0:01:01]}  Qg6 {[%clk 0:00:17]} 26. Rfe1 {[%clk 0:00:42]}  Rd8 {[%clk 0:00:17]} 27. Bxd7 {[%clk 0:00:34]}  Bxd7 {[%clk 0:00:16]} 28. a4 {[%clk 0:00:30]}  Re8 {[%clk 0:00:14]} 29. Qd3 {[%clk 0:00:28]}  Re6 {[%clk 0:00:13]} 30. Ne3 {[%clk 0:00:28]}  Ree8 {[%clk 0:00:11]} 31. Nf5 {[%clk 0:00:28]}  Bf8 {[%clk 0:00:08]} 32. Bh4 {[%clk 0:00:26]}  f6 {[%clk 0:00:08]} 33. Qd5+ {[%clk 0:00:25]}  Kh7 {[%clk 0:00:08]} 34. Ne7 {[%clk 0:00:20]}  Qh6 {[%clk 0:00:04]} 35. Nc6 {[%clk 0:00:18]}  Rbc8 {[%clk 0:00:04]} 36. Rd3 {[%clk 0:00:16]}  Bg7 {[%clk 0:00:04]} 37. Qf7 {[%clk 0:00:15]}  Be6 {[%clk 0:00:03]} 38. Qb7 {[%clk 0:00:12]}  Rb8 {[%clk 0:00:03]} 39. Nxb8 {[%clk 0:00:11]}  Bc4 {[%clk 0:00:03]} 40. Rdd1 {[%clk 0:00:11]}  f5 {[%clk 0:00:02]} 41. d7 {[%clk 0:00:11]}  Rf8 {[%clk 0:00:02]} 42. d8=Q {[%clk 0:00:11]}  Rxd8 {[%clk 0:00:03]} 43. Bxd8 {[%clk 0:00:11]}  fxe4 {[%clk 0:00:04]} 44. Rd7 {[%clk 0:00:10]}  e3 {[%clk 0:00:03]} 45. Rxg7+ {[%clk 0:00:10]}  Qxg7 {[%clk 0:00:03]} 46. Qxg7+ {[%clk 0:00:11]}  Kxg7 {[%clk 0:00:04]} 47. Rxe3 {[%clk 0:00:11]}  Bb3 {[%clk 0:00:04]} 48. Bxb6 {[%clk 0:00:12]}  Bxa4 {[%clk 0:00:04]} 49. Bxc5 {[%clk 0:00:12]}  Bxb5 {[%clk 0:00:05]} 50. Rxe5 {[%clk 0:00:12]}  a4 {[%clk 0:00:04]} 51. Bd4 {[%clk 0:00:13]} 1-0


[Site "https://www.chess.com"]

[Event "Titled Tuesday Blitz May 9 Late 2023"]
[White "Bjelobrk, Igor"]
[Black "Ozates, Tuna"]
[WhiteFideId "4300726"]
[BlackFideId "6354521"]
[WhiteElo "2319"]
[BlackElo "2151"]
[Result "1-0"]
[Round "05"]
[TimeControl "180+2"]
[Date "2023.05.09"]
[WhiteClock "0:00:05"]
[BlackClock "0:00:05"]

1. d4 {[%clk 0:02:55]}  Nf6 {[%clk 0:02:58]} 2. c4 {[%clk 0:02:54]}  e6 {[%clk 0:02:59]} 3. g3 {[%clk 0:02:53]}  d5 {[%clk 0:02:57]} 4. Nf3 {[%clk 0:02:52]}  dxc4 {[%clk 0:02:56]} 5. Bg2 {[%clk 0:02:51]}  c5 {[%clk 0:02:57]} 6. O-O {[%clk 0:02:48]}  Nc6 {[%clk 0:02:57]} 7. dxc5 {[%clk 0:02:48]}  Qxd1 {[%clk 0:02:57]} 8. Rxd1 {[%clk 0:02:49]}  Bxc5 {[%clk 0:02:57]} 9. Nbd2 {[%clk 0:02:47]}  c3 {[%clk 0:02:56]} 10. bxc3 {[%clk 0:02:47]}  O-O {[%clk 0:02:57]} 11. Nb3 {[%clk 0:02:43]}  Be7 {[%clk 0:02:57]} 12. c4 {[%clk 0:02:26]}  Bd7 {[%clk 0:02:36]} 13. Bb2 {[%clk 0:02:24]}  Rfd8 {[%clk 0:02:36]} 14. c5 {[%clk 0:02:21]}  Be8 {[%clk 0:02:22]} 15. Nfd2 {[%clk 0:02:19]}  Rac8 {[%clk 0:02:11]} 16. Nc4 {[%clk 0:02:18]}  Rxd1+ {[%clk 0:02:00]} 17. Rxd1 {[%clk 0:02:17]}  Rd8 {[%clk 0:02:00]} 18. Rxd8 {[%clk 0:02:17]}  Nxd8 {[%clk 0:01:51]} 19. Nd6 {[%clk 0:01:20]}  Bxd6 {[%clk 0:01:26]} 20. cxd6 {[%clk 0:01:21]}  Bc6 {[%clk 0:01:24]} 21. f3 {[%clk 0:01:21]}  Kf8 {[%clk 0:01:19]} 22. e4 {[%clk 0:01:19]}  b6 {[%clk 0:01:09]} 23. Bf1 {[%clk 0:01:15]}  Nd7 {[%clk 0:01:07]} 24. Nd4 {[%clk 0:01:13]}  e5 {[%clk 0:01:05]} 25. Nxc6 {[%clk 0:01:10]}  Nxc6 {[%clk 0:01:05]} 26. Bb5 {[%clk 0:01:04]}  Ncb8 {[%clk 0:01:05]} 27. Kf2 {[%clk 0:00:57]}  f6 {[%clk 0:01:02]} 28. f4 {[%clk 0:00:55]}  a6 {[%clk 0:01:00]} 29. Bc4 {[%clk 0:00:55]}  b5 {[%clk 0:00:58]} 30. Bd5 {[%clk 0:00:54]}  exf4 {[%clk 0:00:42]} 31. gxf4 {[%clk 0:00:54]}  Nb6 {[%clk 0:00:42]} 32. Be6 {[%clk 0:00:50]}  Nc6 {[%clk 0:00:36]} 33. e5 {[%clk 0:00:41]}  fxe5 {[%clk 0:00:36]} 34. fxe5 {[%clk 0:00:41]}  Ke8 {[%clk 0:00:32]} 35. Kf3 {[%clk 0:00:39]}  Nd7 {[%clk 0:00:21]} 36. Kf4 {[%clk 0:00:32]}  Nc5 {[%clk 0:00:19]} 37. Bf5 {[%clk 0:00:21]}  g6 {[%clk 0:00:19]} 38. Bb1 {[%clk 0:00:20]}  Nb4 {[%clk 0:00:19]} 39. Ba3 {[%clk 0:00:11]}  a5 {[%clk 0:00:15]} 40. Bxb4 {[%clk 0:00:10]}  axb4 {[%clk 0:00:15]} 41. Kg5 {[%clk 0:00:08]}  Kd7 {[%clk 0:00:15]} 42. Kf6 {[%clk 0:00:08]}  Ne6 {[%clk 0:00:10]} 43. Be4 {[%clk 0:00:07]}  Nd4 {[%clk 0:00:11]} 44. Bd5 {[%clk 0:00:07]}  Kd8 {[%clk 0:00:08]} 45. e6 {[%clk 0:00:06]}  Nf5 {[%clk 0:00:05]} 46. e7+ {[%clk 0:00:05]} 1-0


[Site "https://www.chess.com"]